fUST/lending_fUST_20250809
["ID","MTS","AMOUNT","RATE_DAILY","PERIOD"]
[378082525,1754718649996,-151.0,0.00022739,7]
[378082526,1754718650006,-151.0,0.00022739,7]
[378082527,1754718650015,-151.0,0.00022739,7]
[378082528,1754718650025,-460.0,0.00022739,2]
[378082529,1754718650034,-460.0,0.00022739,2]
[378082530,1754718650043,-460.0,0.00022739,2]
[378082531,1754718650054,-460.0,0.00022739,2]
[378082532,1754718650063,-460.0,0.00022739,2]
[378082533,1754718650073,-460.0,0.00022739,2]
[378082534,1754718650082,-460.0,0.00022739,2]
[378082535,1754718650092,-460.0,0.00022739,2]
[378082536,1754718650101,-460.0,0.00022739,2]
[378082537,1754718650111,-460.0,0.00022739,2]
[378082538,1754718650121,-460.0,0.00022739,2]
[378082539,1754718650130,-460.0,0.00022739,2]
[378082540,1754718650140,-493.5539849,0.00022739,2]
[378082541,1754718650150,-460.0,0.00022739,2]
[378082542,1754718650158,-460.0,0.00022739,2]
[378082543,1754718650168,-460.0,0.00022739,2]
[378082544,1754718650177,-460.0,0.00022739,2]
[378082545,1754718650186,-460.0,0.00022739,2]
[378082546,1754718650195,-460.0,0.00022739,2]
[378082547,1754718650205,-610.73,0.00022739,2]
[378082548,1754718650214,-460.0,0.00022739,2]
[378082549,1754718650223,-460.0,0.00022739,2]
[378082550,1754718650233,-460.0,0.00022739,2]
[378082551,1754718650242,-460.0,0.00022739,2]
[378082552,1754718650251,-460.0,0.00022739,2]
[378082553,1754718650261,-460.0,0.00022739,2]
[378082554,1754718650270,-460.0,0.00022739,2]
[378082556,1754718650279,-460.0,0.00022739,2]
[378082558,1754718650288,-460.0,0.00022739,2]
[378082560,1754718650297,-460.0,0.00022739,2]
[378082562,1754718650306,-667.01,0.00022739,2]
[378082563,1754718650315,-460.0,0.00022739,2]
[378082564,1754718650324,-460.0,0.00022739,2]
[378082566,1754718650333,-460.0,0.00022739,2]
[378082568,1754718650342,-460.0,0.00022739,2]
[378082570,1754718650352,-460.0,0.00022739,2]
[378082572,1754718650363,-460.0,0.00022739,2]
[378082574,1754718650372,-460.0,0.00022739,2]
[378082576,1754718650381,-460.0,0.00022739,2]
[378082578,1754718650390,-460.0,0.00022739,2]
[378082580,1754718650399,-460.0,0.00022739,2]
[378082582,1754718650408,-460.0,0.00022739,2]
[378082584,1754718650417,-460.0,0.00022739,2]
[378082586,1754718650426,-460.0,0.00022739,2]
[378082588,1754718650435,-460.0,0.00022739,2]
[378082590,1754718650444,-182.08932143,0.00022739,2]
[378082592,1754718650453,-469.65458709,0.00022739,2]
[378082594,1754718650462,-460.0,0.00022739,2]
[378082596,1754718650472,-460.0,0.00022739,2]
[378082598,1754718650482,-460.0,0.00022739,2]
[378082599,1754718650491,-460.0,0.00022739,2]
[378082601,1754718650501,-460.0,0.00022739,2]
[378082603,1754718650510,-460.0,0.00022739,2]
[378082605,1754718650519,-460.0,0.00022739,2]
[378082607,1754718650529,-210.4,0.00022739,2]
[378082609,1754718650546,-460.0,0.00022739,2]
[378082611,1754718650556,-460.0,0.00022739,2]
[378082613,1754718650565,-940.82,0.00022739,2]
[378082615,1754718650574,-460.0,0.00022739,2]
[378082617,1754718650584,-861.6,0.00022739,2]
[378082619,1754718650594,-837.05,0.00022739,2]
[378082621,1754718650603,-460.0,0.00022739,2]
[378082623,1754718650616,-460.0,0.00022739,2]
[378082624,1754718650637,-460.0,0.00022739,2]
[378082626,1754718650649,-1005.24,0.00022739,2]
[378082628,1754718650658,-575.98,0.00022739,2]
[378082630,1754718650667,-460.0,0.00022739,2]
[378082632,1754718650677,-460.0,0.00022739,2]
[378082634,1754718650686,-460.0,0.00022739,2]
[378082636,1754718650695,-1889.53,0.00022739,2]
[378082638,1754718650704,-460.0,0.00022739,2]
[378082640,1754718650712,-460.0,0.00022739,2]
[378082642,1754718650722,-460.0,0.00022739,2]
[378082644,1754718650734,-545.75,0.00022739,2]
[378082646,1754718650743,-460.0,0.00022739,2]
[378082648,1754718650752,-465.5,0.00022739,2]
[378082650,1754718650761,-560.62,0.00022739,2]
[378082652,1754718650770,-460.0,0.00022739,2]
[378082654,1754718650780,-460.0,0.00022739,2]
[378082656,1754718650788,-460.0,0.00022739,2]
[378082658,1754718650798,-460.0,0.00022739,2]
[378082660,1754718650807,-985.45,0.00022739,2]
[378082662,1754718650824,-478.96,0.00022739,2]
[378082664,1754718650833,-460.0,0.00022739,2]
[378082666,1754718650842,-460.0,0.00022739,2]
[378082668,1754718650851,-1794.59,0.00022739,2]
[378082670,1754718650862,-460.0,0.00022739,2]
[378082672,1754718650871,-460.0,0.00022739,2]
[378082674,1754718650879,-532.69,0.00022739,2]
[378082676,1754718650888,-460.0,0.00022739,2]
[378082678,1754718650897,-1214.97,0.00022739,2]
[378082680,1754718650907,-568.05870127,0.00022739,2]
[378082682,1754718650916,-4089.86,0.00022739,2]
[378082684,1754718650931,-460.0,0.00022739,2]
[378082686,1754718650939,-460.0,0.00022739,2]
[378082688,1754718650948,-460.0,0.00022739,2]
[378082689,1754718650956,-460.0,0.00022739,2]
[378082691,1754718650965,-460.0,0.00022739,2]
[378082693,1754718650977,-609.59809324,0.00022739,2]
[378082695,1754718650989,-460.0,0.00022739,2]
[378082697,1754718650999,-460.0,0.00022739,2]
[378082699,1754718651008,-460.0,0.00022739,2]
[378082701,1754718651017,-645.49,0.00022739,2]
[378082703,1754718651026,-460.0,0.00022739,2]
[378082705,1754718651036,-1659.93,0.00022739,2]
[378082707,1754718651045,-460.0,0.00022739,2]
[378082709,1754718651054,-1498.54,0.00022739,2]
[378082711,1754718651064,-460.0,0.00022739,2]
[378082713,1754718651074,-460.0,0.00022739,2]
[378082715,1754718651082,-460.0,0.00022739,2]
[378082717,1754718651092,-460.0,0.00022739,2]
[378082718,1754718651101,-460.0,0.00022739,2]
[378082720,1754718651111,-460.0,0.00022739,2]
[378082723,1754718651121,-460.0,0.00022739,2]
[378082724,1754718651130,-460.0,0.00022739,2]
[378082727,1754718651139,-460.0,0.00022739,2]
[378082729,1754718651149,-460.0,0.00022739,2]
[378082731,1754718651158,-460.0,0.00022739,2]
[378082733,1754718651167,-460.0,0.00022739,2]
[378082735,1754718651176,-460.0,0.00022739,2]
[378082737,1754718651186,-460.0,0.00022739,2]
[378082739,1754718651195,-460.0,0.00022739,2]
[378082740,1754718651204,-1028.81,0.00022739,2]
[378082742,1754718651213,-460.0,0.00022739,2]
[378082743,1754718651222,-1385.66,0.00022739,2]
[378082744,1754718651231,-769.47,0.00022739,2]
[378082745,1754718651240,-1085.83,0.00022739,2]
[378082746,1754718651248,-460.0,0.00022739,2]
[378082747,1754718651257,-466.22197799,0.00022739,2]
[378082748,1754718651266,-460.0,0.00022739,2]
[378082749,1754718651275,-1404.07,0.00022739,2]
[378082750,1754718651284,-460.0,0.00022739,2]
[378082751,1754718651293,-460.0,0.00022739,2]
[378082752,1754718651302,-575.27,0.00022739,2]
[378082753,1754718651311,-460.0,0.00022739,2]
[378082754,1754718651320,-460.0,0.00022739,2]
[378082755,1754718651329,-460.0,0.00022739,2]
[378082756,1754718651338,-480.89,0.00022739,2]
[378082757,1754718651347,-460.0,0.00022739,2]
[378082758,1754718651355,-460.0,0.00022739,2]
[378082759,1754718651364,-460.0,0.00022739,2]
[378082760,1754718651373,-460.0,0.00022739,2]
[378082761,1754718651382,-724.97,0.00022739,2]
[378082762,1754718651391,-460.0,0.00022739,2]
[378082763,1754718651401,-833.04,0.00022739,2]
[378082764,1754718651410,-551.78,0.00022739,2]
[378082765,1754718651419,-460.0,0.00022739,2]
[378082767,1754718651428,-460.0,0.00022739,2]
[378082768,1754718651438,-460.0,0.00022739,2]
[378082770,1754718651448,-648.22,0.00022739,2]
[378082772,1754718651457,-2838.36,0.00022739,2]
[378082774,1754718651466,-532.22,0.00022739,2]
[378082776,1754718651476,-460.0,0.00022739,2]
[378082778,1754718651486,-460.0,0.00022739,2]
[378082780,1754718651495,-500.0,0.00022773,2]
[378082782,1754718651504,-150.0,0.00022773,2]
[378082784,1754718651514,-151.0,0.000228,9]
[378082786,1754718651523,-757.52791229,0.00022868,2]
[378082788,1754718651533,-1500.0,0.00022868,2]
[378082791,1754718651542,-1500.0,0.00022868,2]
[378082798,1754718651656,-1500.0,0.00022868,2]
[378082799,1754718651666,-1000.0,0.00022868,2]
[378082800,1754718651675,-1500.0,0.00022868,2]
[378082801,1754718651685,-1500.0,0.00022868,2]
[378082802,1754718651694,-1500.0,0.00022868,2]
[378082803,1754718651703,-1500.0,0.00022868,2]
[378082804,1754718651712,-1500.0,0.00022868,2]
[378082805,1754718651721,-151.0,0.000229,10]
[378082806,1754718651731,-168.08344221,0.00022941,2]
[378082807,1754718651740,-250.46006549,0.00022973,2]
[378082808,1754718651749,-500.0,0.00022973,2]
[378082809,1754718651759,-500.0,0.00022973,2]
[378082810,1754718651769,-160.0,0.00023,2]
[378082811,1754718651778,-151.0,0.00023013,7]
[378082812,1754718651787,-460.0,0.00023013,2]
[378082813,1754718651796,-460.0,0.00023013,2]
[378082814,1754718651806,-511.94073108,0.00023013,2]
[378082815,1754718651815,-460.0,0.00023013,2]
[378082816,1754718651824,-460.0,0.00023013,2]
[378082817,1754718651833,-460.0,0.00023013,2]
[378082818,1754718651842,-460.0,0.00023013,2]
[378082819,1754718651852,-460.0,0.00023013,2]
[378082820,1754718651861,-460.0,0.00023013,2]
[378082821,1754718651871,-460.0,0.00023013,2]
[378082822,1754718651880,-460.0,0.00023013,2]
[378082823,1754718651889,-460.0,0.00023013,2]
[378082824,1754718651898,-460.0,0.00023013,2]
[378082825,1754718651908,-460.0,0.00023013,2]
[378082826,1754718651917,-460.0,0.00023013,2]
[378082827,1754718651926,-460.0,0.00023013,2]
[378082828,1754718651935,-610.73,0.00023013,2]
[378082829,1754718651944,-460.0,0.00023013,2]
[378082830,1754718651954,-460.0,0.00023013,2]
[378082831,1754718651962,-460.0,0.00023013,2]
[378082832,1754718651972,-460.0,0.00023013,2]
[378082833,1754718651985,-460.0,0.00023013,2]
[378082834,1754718651994,-460.0,0.00023013,2]
[378082835,1754718652005,-460.0,0.00023013,2]
[378082836,1754718652016,-460.0,0.00023013,2]
[378082837,1754718652027,-460.0,0.00023013,2]
[378082838,1754718652036,-460.0,0.00023013,2]
[378082839,1754718652045,-667.01,0.00023013,2]
[378082840,1754718652054,-460.0,0.00023013,2]
[378082841,1754718652065,-460.0,0.00023013,2]
[378082842,1754718652074,-460.0,0.00023013,2]
[378082843,1754718652083,-460.0,0.00023013,2]
[378082844,1754718652093,-460.0,0.00023013,2]
[378082845,1754718652104,-460.0,0.00023013,2]
[378082846,1754718652113,-474.49104705,0.00023013,2]
[378082847,1754718652123,-460.0,0.00023013,2]
[378082848,1754718652132,-460.0,0.00023013,2]
[378082849,1754718652142,-460.0,0.00023013,2]
[378082850,1754718652151,-460.0,0.00023013,2]
[378082851,1754718652161,-460.0,0.00023013,2]
[378082852,1754718652170,-460.0,0.00023013,2]
[378082853,1754718652180,-460.0,0.00023013,2]
[378082854,1754718652193,-460.0,0.00023013,2]
[378082855,1754718652214,-460.0,0.00023013,2]
[378082856,1754718652226,-460.0,0.00023013,2]
[378082857,1754718652236,-460.0,0.00023013,2]
[378082858,1754718652246,-460.0,0.00023013,2]
[378082859,1754718652257,-460.0,0.00023013,2]
[378082860,1754718652267,-167.89603516,0.00023013,2]
[378082861,1754718652280,-940.82,0.00023013,2]
[378082862,1754718652289,-460.0,0.00023013,2]
[378082863,1754718652299,-861.6,0.00023013,2]
[378082864,1754718652310,-837.05,0.00023013,2]
[378082865,1754718652320,-460.0,0.00023013,2]
[378082866,1754718652330,-460.0,0.00023013,2]
[378082867,1754718652340,-460.0,0.00023013,2]
[378082868,1754718652349,-1005.24,0.00023013,2]
[378082869,1754718652360,-575.98,0.00023013,2]
[378082870,1754718652369,-460.0,0.00023013,2]
[378082871,1754718652379,-460.0,0.00023013,2]
[378082872,1754718652388,-309.0338596,0.00023013,2]
[378082873,1754718652398,-1889.53,0.00023013,2]
[378082874,1754718652407,-460.0,0.00023013,2]
[378082875,1754718652417,-460.0,0.00023013,2]
[378082876,1754718652427,-460.0,0.00023013,2]
[378082877,1754718652437,-545.75,0.00023013,2]
[378082878,1754718652447,-460.0,0.00023013,2]
[378082879,1754718652457,-465.5,0.00023013,2]
[378082880,1754718652466,-560.62,0.00023013,2]
[378082881,1754718652475,-460.0,0.00023013,2]
[378082882,1754718652485,-460.0,0.00023013,2]
[378082883,1754718652494,-460.0,0.00023013,2]
[378082884,1754718652503,-460.0,0.00023013,2]
[378082885,1754718652513,-985.45,0.00023013,2]
[378082886,1754718652522,-478.96,0.00023013,2]
[378082887,1754718652532,-460.0,0.00023013,2]
[378082888,1754718652541,-460.0,0.00023013,2]
[378082889,1754718652551,-460.0,0.00023013,2]
[378082890,1754718652560,-1794.59,0.00023013,2]
[378082891,1754718652569,-336.4183092,0.00023013,2]
[378082892,1754718652579,-532.69,0.00023013,2]
[378082893,1754718652588,-1214.97,0.00023013,2]
[378082894,1754718652598,-4089.86,0.00023013,2]
[378082895,1754718652607,-460.0,0.00023013,2]
[378082896,1754718652617,-460.0,0.00023013,2]
[378082897,1754718652626,-460.0,0.00023013,2]
[378082898,1754718652636,-440.07417627,0.00023013,2]
[378082899,1754718652645,-460.0,0.00023013,2]
[378082900,1754718652654,-460.0,0.00023013,2]
[378082901,1754718652664,-460.0,0.00023013,2]
[378082902,1754718652673,-460.0,0.00023013,2]
[378082903,1754718652683,-645.49,0.00023013,2]
[378082904,1754718652692,-460.0,0.00023013,2]
[378082905,1754718652702,-1659.93,0.00023013,2]
[378082906,1754718652711,-460.0,0.00023013,2]
[378082907,1754718652720,-1498.54,0.00023013,2]
[378082908,1754718652730,-460.0,0.00023013,2]
[378082909,1754718652739,-460.0,0.00023013,2]
[378082910,1754718652749,-460.0,0.00023013,2]
[378082911,1754718652758,-460.0,0.00023013,2]
[378082912,1754718652768,-460.0,0.00023013,2]
[378082913,1754718652777,-460.0,0.00023013,2]
[378082914,1754718652786,-460.0,0.00023013,2]
[378082915,1754718652796,-460.0,0.00023013,2]
[378082916,1754718652805,-460.0,0.00023013,2]
[378082917,1754718652815,-460.0,0.00023013,2]
[378082918,1754718652825,-460.0,0.00023013,2]
[378082919,1754718652835,-460.0,0.00023013,2]
[378082920,1754718652844,-460.0,0.00023013,2]
[378082921,1754718652853,-460.0,0.00023013,2]
[378082922,1754718652864,-460.0,0.00023013,2]
[378082923,1754718652873,-1028.81,0.00023013,2]
[378082925,1754718652882,-460.0,0.00023013,2]
[378082927,1754718652892,-1385.66,0.00023013,2]
[378082928,1754718652901,-769.47,0.00023013,2]
[378082929,1754718652910,-1085.83,0.00023013,2]
[378082931,1754718652920,-460.0,0.00023013,2]
[378082933,1754718652929,-460.0,0.00023013,2]
[378082935,1754718652938,-1404.07,0.00023013,2]
[378082936,1754718652947,-460.0,0.00023013,2]
[378082937,1754718652957,-460.0,0.00023013,2]
[378082938,1754718652967,-575.27,0.00023013,2]
[378082939,1754718652980,-460.0,0.00023013,2]
[378082940,1754718652989,-460.0,0.00023013,2]
[378082941,1754718652998,-460.0,0.00023013,2]
[378082942,1754718653007,-480.89,0.00023013,2]
[378082943,1754718653017,-460.0,0.00023013,2]
[378082944,1754718653026,-490.17582449,0.00023013,2]
[378082945,1754718653036,-460.0,0.00023013,2]
[378082946,1754718653045,-460.0,0.00023013,2]
[378082947,1754718653054,-724.97,0.00023013,2]
[378082948,1754718653063,-460.0,0.00023013,2]
[378082949,1754718653074,-833.04,0.00023013,2]
[378082950,1754718653083,-551.78,0.00023013,2]
[378082951,1754718653092,-460.0,0.00023013,2]
[378082952,1754718653103,-460.0,0.00023013,2]
[378082953,1754718653113,-648.22,0.00023013,2]
[378082954,1754718653122,-460.0,0.00023013,2]
[378082955,1754718653132,-2838.36,0.00023013,2]
[378082956,1754718653141,-532.22,0.00023013,2]
[378082957,1754718653151,-460.0,0.00023013,2]
[378082959,1754718653160,-460.0,0.00023013,2]
[378082961,1754718653169,-323.78,0.00023067,3]
[378082963,1754718653178,-1133.2,0.00023067,3]
[378082965,1754718653187,-566.6,0.00023067,3]
[378082967,1754718653196,-1002.38537494,0.00023068,2]
[378082969,1754718653206,-350.0,0.00023068,2]
[378082970,1754718653215,-1560.48067769,0.00023177,2]
[378082972,1754718653224,-12666.14847857,0.00023215,2]
[378082974,1754718653234,-160.0,0.00023215,2]
[378082976,1754718653243,-216.61183532,0.00023215,2]
[378082978,1754718653253,-160.0,0.00023215,2]
[378082980,1754718653262,-160.0,0.00023215,2]
[378082982,1754718653271,-231.92402426,0.00023215,2]
[378082984,1754718653280,-1444.76,0.00023215,2]
[378082985,1754718653289,-230.82,0.00023216,2]
[378082986,1754718653299,-160.0,0.00023216,2]
[378082987,1754718653308,-160.0,0.00023216,2]
[378082988,1754718653317,-160.0,0.00023216,2]
[378082989,1754718653327,-461.55179734,0.00023216,2]
[378082990,1754718653338,-312.16666667,0.00023216,2]
[378082992,1754718653348,-842.95011917,0.00023216,2]
[378082994,1754718653358,-160.0,0.00023217,2]
[378082996,1754718653367,-160.0,0.00023218,2]
[378082998,1754718653376,-17961.2500883,0.00023237,2]
[378083000,1754718653385,-1800.0,0.00023268,2]
[378083002,1754718653395,-511.4761579,0.00023268,2]
[378083004,1754718653408,-500.0,0.00023268,2]
[378083006,1754718653417,-1500.0,0.00023268,2]
[378083008,1754718653427,-1500.0,0.00023268,2]
[378083010,1754718653436,-1500.0,0.00023268,2]
[378083011,1754718653445,-501.78237328,0.00023268,2]
[378083013,1754718653454,-989.56413626,0.00023268,2]
[378083015,1754718653464,-1500.0,0.00023268,2]
[378083017,1754718653472,-504.47162244,0.00023268,2]
[378083019,1754718653482,-239.35201776,0.00023268,2]
[378083020,1754718653491,-507.53751155,0.00023268,2]
[378083021,1754718653500,-501.83906,0.00023268,2]
[378083023,1754718653510,-1500.0,0.00023268,2]
[378083025,1754718653519,-1500.0,0.00023268,2]
[378083027,1754718653528,-1500.0,0.00023268,2]
[378083029,1754718653537,-516.1618568,0.00023268,2]
[378083031,1754718653547,-151.0,0.00023287,7]
[378083032,1754718653556,-151.0,0.00023287,7]
[378083034,1754718653566,-151.0,0.00023287,7]
[378083037,1754718653576,-460.0,0.00023287,2]
[378083038,1754718653586,-460.0,0.00023287,2]
[378083040,1754718653595,-460.0,0.00023287,2]
[378083043,1754718653606,-592.07444814,0.00023287,2]
[378083045,1754718653615,-460.0,0.00023287,2]
[378083046,1754718653625,-460.0,0.00023287,2]
[378083049,1754718653636,-460.0,0.00023287,2]
[378083051,1754718653645,-460.0,0.00023287,2]
[378083053,1754718653654,-460.0,0.00023287,2]
[378083055,1754718653664,-460.0,0.00023287,2]
[378083057,1754718653674,-460.0,0.00023287,2]
[378083059,1754718653683,-460.0,0.00023287,2]
[378083061,1754718653692,-460.0,0.00023287,2]
[378083063,1754718653701,-610.73,0.00023287,2]
[378083065,1754718653711,-460.0,0.00023287,2]
[378083067,1754718653720,-460.0,0.00023287,2]
[378083069,1754718653729,-460.0,0.00023287,2]
[378083071,1754718653738,-460.0,0.00023287,2]
[378083073,1754718653747,-460.0,0.00023287,2]
[378083075,1754718653756,-562.54058068,0.00023287,2]
[378083077,1754718653765,-460.0,0.00023287,2]
[378083079,1754718653774,-460.0,0.00023287,2]
[378083080,1754718653783,-401.32490209,0.00023287,2]
[378083082,1754718653793,-460.0,0.00023287,2]
[378083084,1754718653802,-667.01,0.00023287,2]
[378083086,1754718653811,-460.0,0.00023287,2]
[378083088,1754718653821,-460.0,0.00023287,2]
[378083090,1754718653830,-460.0,0.00023287,2]
[378083092,1754718653840,-460.0,0.00023287,2]
[378083105,1754718653946,-460.0,0.00023287,2]
[378083107,1754718653957,-460.0,0.00023287,2]
[378083109,1754718653967,-460.0,0.00023287,2]
[378083111,1754718653981,-460.0,0.00023287,2]
[378083113,1754718653991,-460.0,0.00023287,2]
[378083115,1754718654001,-460.0,0.00023287,2]
[378083117,1754718654010,-460.0,0.00023287,2]
[378083119,1754718654022,-460.0,0.00023287,2]
[378083121,1754718654031,-460.0,0.00023287,2]
[378083123,1754718654041,-460.0,0.00023287,2]
[378083125,1754718654052,-460.0,0.00023287,2]
[378083126,1754718654061,-460.0,0.00023287,2]
[378083127,1754718654072,-460.0,0.00023287,2]
[378083128,1754718654081,-270.55235885,0.00023287,2]
[378083129,1754718654091,-460.0,0.00023287,2]
[378083130,1754718654100,-940.82,0.00023287,2]
[378083131,1754718654110,-460.0,0.00023287,2]
[378083132,1754718654119,-861.6,0.00023287,2]
[378083133,1754718654129,-837.05,0.00023287,2]
[378083134,1754718654138,-460.0,0.00023287,2]
[378083135,1754718654148,-460.0,0.00023287,2]
[378083136,1754718654157,-460.0,0.00023287,2]
[378083137,1754718654167,-1005.24,0.00023287,2]
[378083138,1754718654176,-575.98,0.00023287,2]
[378083139,1754718654186,-460.0,0.00023287,2]
[378083140,1754718654196,-460.0,0.00023287,2]
[378083141,1754718654206,-1889.53,0.00023287,2]
[378083142,1754718654216,-460.0,0.00023287,2]
[378083143,1754718654225,-460.0,0.00023287,2]
[378083144,1754718654235,-366.81371358,0.00023287,2]
[378083145,1754718654244,-545.75,0.00023287,2]
[378083146,1754718654254,-460.0,0.00023287,2]
[378083147,1754718654264,-465.5,0.00023287,2]
[378083148,1754718654273,-560.62,0.00023287,2]
[378083149,1754718654283,-460.0,0.00023287,2]
[378083150,1754718654292,-460.0,0.00023287,2]
[378083151,1754718654301,-460.0,0.00023287,2]
[378083152,1754718654310,-460.0,0.00023287,2]
[378083153,1754718654320,-985.45,0.00023287,2]
[378083154,1754718654330,-478.96,0.00023287,2]
[378083155,1754718654339,-460.0,0.00023287,2]
[378083156,1754718654349,-460.0,0.00023287,2]
[378083157,1754718654358,-460.0,0.00023287,2]
[378083158,1754718654368,-1794.59,0.00023287,2]
[378083159,1754718654377,-532.69,0.00023287,2]
[378083160,1754718654387,-1214.97,0.00023287,2]
[378083161,1754718654397,-4089.86,0.00023287,2]
[378083162,1754718654407,-460.0,0.00023287,2]
[378083163,1754718654416,-236.5627385,0.00023287,2]
[378083164,1754718654426,-460.0,0.00023287,2]
[378083165,1754718654435,-460.0,0.00023287,2]
[378083166,1754718654445,-460.0,0.00023287,2]
[378083167,1754718654455,-460.0,0.00023287,2]
[378083168,1754718654465,-460.0,0.00023287,2]
[378083169,1754718654474,-645.49,0.00023287,2]
[378083170,1754718654483,-460.0,0.00023287,2]
[378083171,1754718654492,-1659.93,0.00023287,2]
[378083172,1754718654502,-460.0,0.00023287,2]
[378083173,1754718654511,-1498.54,0.00023287,2]
[378083174,1754718654521,-460.0,0.00023287,2]
[378083175,1754718654530,-460.0,0.00023287,2]
[378083176,1754718654540,-460.0,0.00023287,2]
[378083177,1754718654550,-460.0,0.00023287,2]
[378083178,1754718654559,-460.0,0.00023287,2]
[378083179,1754718654569,-460.0,0.00023287,2]
[378083180,1754718654579,-460.0,0.00023287,2]
[378083181,1754718654588,-460.0,0.00023287,2]
[378083182,1754718654597,-460.0,0.00023287,2]
[378083183,1754718654606,-460.0,0.00023287,2]
[378083184,1754718654618,-460.0,0.00023287,2]
[378083185,1754718654627,-479.83211842,0.00023287,2]
[378083186,1754718654636,-460.0,0.00023287,2]
[378083187,1754718654646,-460.0,0.00023287,2]
[378083188,1754718654655,-1028.81,0.00023287,2]
[378083189,1754718654664,-460.0,0.00023287,2]
[378083190,1754718654673,-1385.66,0.00023287,2]
[378083191,1754718654682,-769.47,0.00023287,2]
[378083192,1754718654692,-1085.83,0.00023287,2]
[378083193,1754718654701,-460.0,0.00023287,2]
[378083194,1754718654710,-460.0,0.00023287,2]
[378083195,1754718654720,-1404.07,0.00023287,2]
[378083196,1754718654730,-460.0,0.00023287,2]
[378083197,1754718654739,-575.27,0.00023287,2]
[378083198,1754718654748,-460.0,0.00023287,2]
[378083199,1754718654758,-460.0,0.00023287,2]
[378083200,1754718654767,-304.45925288,0.00023287,2]
[378083201,1754718654778,-480.89,0.00023287,2]
[378083202,1754718654787,-460.0,0.00023287,2]
[378083203,1754718654797,-460.0,0.00023287,2]
[378083204,1754718654807,-460.0,0.00023287,2]
[378083205,1754718654816,-724.97,0.00023287,2]
[378083206,1754718654826,-344.75791798,0.00023287,2]
[378083207,1754718654835,-833.04,0.00023287,2]
[378083208,1754718654845,-551.78,0.00023287,2]
[378083210,1754718654854,-460.0,0.00023287,2]
[378083212,1754718654865,-460.0,0.00023287,2]
[378083214,1754718654874,-460.0,0.00023287,2]
[378083216,1754718654884,-648.22,0.00023287,2]
[378083218,1754718654893,-2838.36,0.00023287,2]
[378083220,1754718654902,-532.22,0.00023287,2]
[378083221,1754718654912,-460.0,0.00023287,2]
[378083222,1754718654921,-460.0,0.00023287,2]
[378083223,1754718654931,-500.0,0.00023288,2]
[378083224,1754718654941,-250.0,0.00023321,2]
[378083225,1754718654951,-503.70208939,0.00023336,2]
[378083227,1754718654960,-160.0,0.00023348,2]
[378083229,1754718654970,-7638.35700112,0.00023409,2]
[378083231,1754718654984,-1000.0,0.00023416,2]
[378083233,1754718654993,-2000.0,0.00023416,2]